[Event "*** Titled Tuesday Blitz"]
[Site "Chess.com"]
[Date "2018.07.03"]
[Round "4"]
[White "volodja49"]
[Black "dachessmandan"]
[Result "1-0"]
[WhiteElo "2471"]
[BlackElo "2424"]
[TimeControl "180+2"]
[EndTime "13:51:36 PDT"]
[Termination "volodja49 won by checkmate"]

1. d4 {[%clk 0:03:01.9]} 1... Nf6 {[%clk 0:03:00.7]} 2. c4 {[%clk 0:03:02.6]}
2... e6 {[%clk 0:03:00.5]} 3. Nf3 {[%clk 0:03:02.9]} 3... b6 {[%clk 0:02:55.7]}
4. g3 {[%clk 0:03:03.5]} 4... Bb7 {[%clk 0:02:56.8]} 5. Bg2 {[%clk 0:03:04.7]}
5... Be7 {[%clk 0:02:58.2]} 6. O-O {[%clk 0:03:05.7]} 6... O-O {[%clk
0:02:59.2]} 7. Nc3 {[%clk 0:03:07]} 7... d6 {[%clk 0:02:58.1]} 8. Qc2 {[%clk
0:03:05.6]} 8... Nbd7 {[%clk 0:02:58.5]} 9. e4 {[%clk 0:03:06.1]} 9... e5 {[%clk
0:02:59]} 10. Re1 {[%clk 0:02:58.1]} 10... Re8 {[%clk 0:02:38.9]} 11. h3 {[%clk
0:02:58.4]} 11... c5 {[%clk 0:02:26.9]} 12. dxe5 {[%clk 0:02:47.6]} 12... dxe5
{[%clk 0:02:27.8]} 13. Nd5 {[%clk 0:02:43.4]} 13... Bxd5 {[%clk 0:02:25.7]} 14.
exd5 {[%clk 0:02:45.3]} 14... Bd6 {[%clk 0:02:18.4]} 15. b3 {[%clk 0:02:41.2]}
15... Nf8 {[%clk 0:02:00.4]} 16. Bb2 {[%clk 0:02:41]} 16... Ng6 {[%clk 0:01:59]}
17. Re2 {[%clk 0:02:35.1]} 17... e4 {[%clk 0:01:48.6]} 18. Bxf6 {[%clk
0:02:30.7]} 18... exf3 {[%clk 0:00:46.9]} 19. Bxd8 {[%clk 0:02:13.7]} 19... Rxe2
{[%clk 0:00:46.5]} 20. Qd1 {[%clk 0:01:49.5]} 20... Rxd8 {[%clk 0:00:38.5]} 21.
Bxf3 {[%clk 0:01:47.9]} 21... Rb2 {[%clk 0:00:39.6]} 22. Rb1 {[%clk 0:01:36.6]}
22... Rxa2 {[%clk 0:00:39.5]} 23. Ra1 {[%clk 0:01:36.8]} 23... Rb2 {[%clk
0:00:35]} 24. Rxa7 {[%clk 0:01:34.9]} 24... Be5 {[%clk 0:00:36.3]} 25. Bh5
{[%clk 0:01:23]} 25... Bd4 {[%clk 0:00:35.5]} 26. Qf3 {[%clk 0:01:23.9]} 26...
Rxf2 {[%clk 0:00:34.4]} 27. Qxf2 {[%clk 0:01:23.4]} 27... Bxf2+ {[%clk
0:00:36.1]} 28. Kxf2 {[%clk 0:01:25.3]} 28... Ne5 {[%clk 0:00:35.7]} 29. Rb7
{[%clk 0:01:23.2]} 29... g6 {[%clk 0:00:37.1]} 30. Be2 {[%clk 0:01:23]} 30...
Rd6 {[%clk 0:00:38.3]} 31. Ke3 {[%clk 0:01:24.1]} 31... Kg7 {[%clk 0:00:39.2]}
32. Ke4 {[%clk 0:01:23.9]} 32... Kf6 {[%clk 0:00:40.4]} 33. h4 {[%clk 0:01:20]}
33... h6 {[%clk 0:00:40.8]} 34. g4 {[%clk 0:01:20.4]} 34... g5 {[%clk
0:00:41.4]} 35. h5 {[%clk 0:01:21.9]} 35... Nd7 {[%clk 0:00:41]} 36. Bd3 {[%clk
0:01:07.2]} 36... Kg7 {[%clk 0:00:40.6]} 37. Ke3 {[%clk 0:01:02]} 37... Nf6
{[%clk 0:00:22.4]} 38. Bf5 {[%clk 0:01:01.5]} 38... Ne8 {[%clk 0:00:23.5]} 39.
Be6 {[%clk 0:00:56.4]} 39... Kg8 {[%clk 0:00:15.3]} 40. Rxf7 {[%clk 0:00:48.8]}
40... Ng7 {[%clk 0:00:15]} 41. Rd7+ {[%clk 0:00:42.5]} 41... Rxe6+ {[%clk
0:00:15.5]} 42. dxe6 {[%clk 0:00:43.5]} 42... Nxe6 {[%clk 0:00:17.4]} 43. Rd6
{[%clk 0:00:42.8]} 43... Nd4 {[%clk 0:00:18.6]} 44. Rxd4 {[%clk 0:00:43.5]}
44... cxd4+ {[%clk 0:00:20.5]} 45. Kxd4 {[%clk 0:00:45.1]} 45... Kf7 {[%clk
0:00:22.2]} 46. Ke5 {[%clk 0:00:45.7]} 46... Ke7 {[%clk 0:00:24.1]} 47. b4
{[%clk 0:00:45.6]} 47... Kd7 {[%clk 0:00:25.3]} 48. Kd5 {[%clk 0:00:46.1]} 48...
Ke7 {[%clk 0:00:25.7]} 49. c5 {[%clk 0:00:45.9]} 49... b5 {[%clk 0:00:26.1]} 50.
c6 {[%clk 0:00:44.1]} 50... Kd8 {[%clk 0:00:27.7]} 51. Kc5 {[%clk 0:00:45.7]}
51... Kc7 {[%clk 0:00:29.6]} 52. Kxb5 {[%clk 0:00:46.4]} 52... Kd6 {[%clk
0:00:31.5]} 53. Kb6 {[%clk 0:00:47.8]} 53... Ke5 {[%clk 0:00:33.3]} 54. c7
{[%clk 0:00:49.4]} 54... Kf4 {[%clk 0:00:35]} 55. c8=Q {[%clk 0:00:51.3]} 55...
Kg3 {[%clk 0:00:36.9]} 56. Qf5 {[%clk 0:00:51]} 56... Kh4 {[%clk 0:00:38.8]} 57.
Kc5 {[%clk 0:00:51.7]} 57... Kh3 {[%clk 0:00:39.9]} 58. b5 {[%clk 0:00:53]}
58... Kh4 {[%clk 0:00:41.8]} 59. b6 {[%clk 0:00:53.8]} 59... Kh3 {[%clk
0:00:43.7]} 60. b7 {[%clk 0:00:54.7]} 60... Kh4 {[%clk 0:00:45.6]} 61. b8=Q
{[%clk 0:00:54.2]} 61... Kh3 {[%clk 0:00:46.6]} 62. Qbe5 {[%clk 0:00:53.1]}
62... Kh4 {[%clk 0:00:47.4]} 63. Qe1+ {[%clk 0:00:52.6]} 63... Kh3 {[%clk
0:00:49]} 64. Qf3+ {[%clk 0:00:52.5]} 64... Kh2 {[%clk 0:00:50]} 65. Qeg3#
{[%clk 0:00:53.7]} 1-0

[Event "*** Titled Tuesday Blitz"]
[Site "Chess.com"]
[Date "2018.07.03"]
[Round "4"]
[White "pultineviciuspaulius"]
[Black "Korchmar_Vasiliy"]
[Result "0-1"]
[WhiteElo "2605"]
[BlackElo "2693"]
[TimeControl "180+2"]
[EndTime "13:51:42 PDT"]
[Termination "Korchmar_Vasiliy won by resignation"]

1. Nf3 {[%clk 0:03:01.9]} 1... c5 {[%clk 0:03:00.4]} 2. d4 {[%clk 0:03:03.8]}
2... cxd4 {[%clk 0:02:57.8]} 3. Nxd4 {[%clk 0:03:05.7]} 3... g6 {[%clk
0:02:58.2]} 4. g3 {[%clk 0:03:06.9]} 4... Bg7 {[%clk 0:02:59]} 5. Bg2 {[%clk
0:03:08.5]} 5... Nc6 {[%clk 0:02:59.3]} 6. Nb3 {[%clk 0:03:08.7]} 6... Nf6
{[%clk 0:02:41]} 7. O-O {[%clk 0:03:09.6]} 7... O-O {[%clk 0:02:42.2]} 8. e4
{[%clk 0:03:10.7]} 8... d6 {[%clk 0:02:39.9]} 9. h3 {[%clk 0:03:12.1]} 9... a5
{[%clk 0:02:32.8]} 10. Na3 {[%clk 0:03:10.8]} 10... a4 {[%clk 0:02:27]} 11. Nd2
{[%clk 0:03:11.2]} 11... Be6 {[%clk 0:02:21.7]} 12. Re1 {[%clk 0:03:12.1]} 12...
Qd7 {[%clk 0:01:45.2]} 13. Kh2 {[%clk 0:03:12.4]} 13... Rab8 {[%clk 0:01:40.4]}
14. c3 {[%clk 0:03:08.8]} 14... b5 {[%clk 0:01:40.9]} 15. Nc2 {[%clk 0:03:10.3]}
15... b4 {[%clk 0:01:38.6]} 16. Nd4 {[%clk 0:02:59.9]} 16... Ne5 {[%clk
0:01:36.5]} 17. Nxe6 {[%clk 0:02:35.6]} 17... fxe6 {[%clk 0:01:36.2]} 18. Qe2
{[%clk 0:02:29.7]} 18... bxc3 {[%clk 0:01:32.6]} 19. bxc3 {[%clk 0:02:31.6]}
19... Rbc8 {[%clk 0:01:14.2]} 20. Bb2 {[%clk 0:02:25.2]} 20... a3 {[%clk
0:00:57.5]} 21. Bxa3 {[%clk 0:02:05]} 21... Rxc3 {[%clk 0:00:58.9]} 22. Bb4
{[%clk 0:02:02.8]} 22... Rc2 {[%clk 0:01:00.2]} 23. Qd1 {[%clk 0:01:59.2]} 23...
Qa4 {[%clk 0:00:51.7]} 24. a3 {[%clk 0:01:43.8]} 24... Nd3 {[%clk 0:00:49.2]}
25. Rf1 {[%clk 0:01:35.4]} 25... Nxb4 {[%clk 0:00:36.4]} 26. axb4 {[%clk
0:01:35.3]} 26... Ng4+ {[%clk 0:00:37.4]} 27. Qxg4 {[%clk 0:00:54.8]} 27... Bxa1
{[%clk 0:00:38]} 28. Qxe6+ {[%clk 0:00:56.4]} 28... Rf7 {[%clk 0:00:38.4]} 29.
e5 {[%clk 0:00:54.1]} 29... Rxd2 {[%clk 0:00:35.1]} 30. Bd5 {[%clk 0:00:50.6]}
30... Rxd5 {[%clk 0:00:36]} 31. Qxd5 {[%clk 0:00:52.5]} 31... Bxe5 {[%clk
0:00:35.2]} 32. b5 {[%clk 0:00:53.8]} 32... Qd4 {[%clk 0:00:32.1]} 33. Qa8+
{[%clk 0:00:53.6]} 33... Kg7 {[%clk 0:00:32.9]} 34. Kg2 {[%clk 0:00:53.7]} 34...
d5 {[%clk 0:00:28.2]} 35. Qc6 {[%clk 0:00:38.3]} 35... Qe4+ {[%clk 0:00:28.4]}
36. f3 {[%clk 0:00:39.6]} 36... Qc4 {[%clk 0:00:21.5]} 37. Qe6 {[%clk
0:00:34.2]} 37... Bd6 {[%clk 0:00:18.5]} 38. b6 {[%clk 0:00:29.7]} 38... Qb3
{[%clk 0:00:18.2]} 39. h4 {[%clk 0:00:23.2]} 39... Rf6 {[%clk 0:00:18.6]} 40.
Qd7 {[%clk 0:00:17.9]} 40... Qxb6 {[%clk 0:00:19.2]} 41. h5 {[%clk 0:00:19.4]}
41... gxh5 {[%clk 0:00:16.9]} 42. Qe8 {[%clk 0:00:15.4]} 42... Qb2+ {[%clk
0:00:17.5]} 43. Rf2 {[%clk 0:00:16.3]} 43... Qe5 {[%clk 0:00:19.3]} 44. f4
{[%clk 0:00:16.2]} 44... Qe4+ {[%clk 0:00:20.8]} 45. Kh2 {[%clk 0:00:17.8]}
45... Qg6 {[%clk 0:00:20.8]} 46. Qb5 {[%clk 0:00:17.3]} 46... d4 {[%clk
0:00:21.1]} 47. Qc4 {[%clk 0:00:17.7]} 47... h4 {[%clk 0:00:19.6]} 48. Rg2
{[%clk 0:00:18.6]} 48... hxg3+ {[%clk 0:00:19.9]} 49. Rxg3 {[%clk 0:00:20.5]}
49... Bxf4 {[%clk 0:00:21]} 0-1

[Event "*** Titled Tuesday Blitz"]
[Site "Chess.com"]
[Date "2018.07.03"]
[Round "4"]
[White "Kaphrep"]
[Black "kungmongmanh"]
[Result "1/2-1/2"]
[WhiteElo "2667"]
[BlackElo "2494"]
[TimeControl "180+2"]
[EndTime "13:51:46 PDT"]
[Termination "Game drawn by agreement"]

1. b3 {[%clk 0:03:01.9]} 1... e5 {[%clk 0:02:58]} 2. Bb2 {[%clk 0:03:02.9]} 2...
Nc6 {[%clk 0:02:58.5]} 3. Nf3 {[%clk 0:03:04.4]} 3... e4 {[%clk 0:02:49.9]} 4.
Nd4 {[%clk 0:03:05.2]} 4... Nxd4 {[%clk 0:02:34.5]} 5. Bxd4 {[%clk 0:03:05.9]}
5... Nf6 {[%clk 0:02:34.2]} 6. e3 {[%clk 0:03:06.7]} 6... d5 {[%clk 0:02:32.5]}
7. c4 {[%clk 0:03:07.1]} 7... Be7 {[%clk 0:02:26.9]} 8. cxd5 {[%clk 0:03:04.3]}
8... Qxd5 {[%clk 0:02:18.4]} 9. Nc3 {[%clk 0:03:03.9]} 9... Qf5 {[%clk 0:02:12]}
10. Be2 {[%clk 0:02:42]} 10... c6 {[%clk 0:02:06.1]} 11. O-O {[%clk 0:02:36.7]}
11... O-O {[%clk 0:02:05.1]} 12. f3 {[%clk 0:02:37.1]} 12... exf3 {[%clk
0:01:57]} 13. Bxf3 {[%clk 0:02:39]} 13... Qg6 {[%clk 0:01:55.8]} 14. Ne2 {[%clk
0:02:26.6]} 14... Nh5 {[%clk 0:01:32.8]} 15. Bxh5 {[%clk 0:01:36.2]} 15... Qxh5
{[%clk 0:01:32.2]} 16. Nf4 {[%clk 0:01:37.5]} 16... Qxd1 {[%clk 0:01:18.5]} 17.
Raxd1 {[%clk 0:01:39.4]} 17... Rd8 {[%clk 0:01:14.7]} 18. Bc3 {[%clk 0:01:35.9]}
18... Bg4 {[%clk 0:01:13.1]} 19. Rde1 {[%clk 0:01:35.2]} 19... Bh4 {[%clk
0:01:10.4]} 20. g3 {[%clk 0:01:31.6]} 20... Be7 {[%clk 0:01:11.1]} 21. h3 {[%clk
0:01:31.9]} 21... Bd7 {[%clk 0:01:10.4]} 22. g4 {[%clk 0:01:23.2]} 22... Bd6
{[%clk 0:00:57.5]} 23. Nh5 {[%clk 0:01:19.7]} 23... Bf8 {[%clk 0:00:51.2]} 24.
Rf2 {[%clk 0:01:15.1]} 24... Be8 {[%clk 0:00:47.2]} 25. Ref1 {[%clk 0:01:13.6]}
25... Rd7 {[%clk 0:00:45]} 26. Ng3 {[%clk 0:01:08.4]} 26... Rad8 {[%clk
0:00:42.3]} 27. Nf5 {[%clk 0:01:06.6]} 27... b6 {[%clk 0:00:37.1]} 28. h4 {[%clk
0:00:53.9]} 28... c5 {[%clk 0:00:32.2]} 29. h5 {[%clk 0:00:50]} 29... h6 {[%clk
0:00:28.6]} 30. Kh2 {[%clk 0:00:49.2]} 30... b5 {[%clk 0:00:28.2]} 31. d4 {[%clk
0:00:38.2]} 31... cxd4 {[%clk 0:00:24.5]} 32. Bxd4 {[%clk 0:00:39.1]} 32... Rc8
{[%clk 0:00:24.3]} 33. Kh3 {[%clk 0:00:33.4]} 33... a5 {[%clk 0:00:24.2]} 34.
Nh4 {[%clk 0:00:22.6]} 34... a4 {[%clk 0:00:19.8]} 35. Nf3 {[%clk 0:00:21.1]}
35... f6 {[%clk 0:00:20]} 36. Nh4 {[%clk 0:00:22]} 36... axb3 {[%clk 0:00:20.4]}
37. axb3 {[%clk 0:00:22.4]} 37... Rdc7 {[%clk 0:00:21.7]} 38. Ng6 {[%clk
0:00:21.1]} 38... Bd6 {[%clk 0:00:21.5]} 39. Nf4 {[%clk 0:00:10.8]} 39... Bxf4
{[%clk 0:00:16.7]} 40. exf4 {[%clk 0:00:07.3]} 40... Rc2 {[%clk 0:00:16.9]} 41.
f5 {[%clk 0:00:06.3]} 41... Bf7 {[%clk 0:00:16.3]} 42. b4 {[%clk 0:00:05.3]}
42... R2c4 {[%clk 0:00:15.5]} 43. Bc5 {[%clk 0:00:06.2]} 43... Rd8 {[%clk
0:00:16.1]} 44. Rf3 {[%clk 0:00:06.7]} 44... Re8 {[%clk 0:00:15.5]} 45. Kg3
{[%clk 0:00:05.6]} 45... Ree4 {[%clk 0:00:15.5]} 46. Rf4 {[%clk 0:00:06.6]}
46... Rxf4 {[%clk 0:00:16.3]} 47. Rxf4 {[%clk 0:00:08.5]} 47... Rxf4 {[%clk
0:00:17.6]} 48. Kxf4 {[%clk 0:00:10.4]} 48... Bc4 {[%clk 0:00:19]} 49. Bd6
{[%clk 0:00:11.3]} 49... Kf7 {[%clk 0:00:20.4]} 50. Bc7 {[%clk 0:00:12.3]} 50...
Bd3 {[%clk 0:00:21.2]} 51. Ke3 {[%clk 0:00:13.5]} 51... Bc4 {[%clk 0:00:22.1]}
52. Bg3 {[%clk 0:00:14.6]} 52... Bb3 {[%clk 0:00:23.3]} 53. Kd2 {[%clk
0:00:14.7]} 53... Bd5 {[%clk 0:00:23.9]} 54. Ke3 {[%clk 0:00:15.7]} 54... Bb3
{[%clk 0:00:25.1]} 55. Be1 {[%clk 0:00:14.9]} 1/2-1/2

[Event "*** Titled Tuesday Blitz"]
[Site "Chess.com"]
[Date "2018.07.03"]
[Round "4"]
[White "VerdeNotte"]
[Black "OparinGrigoriy"]
[Result "1/2-1/2"]
[WhiteElo "2593"]
[BlackElo "2884"]
[TimeControl "180+2"]
[EndTime "13:51:54 PDT"]
[Termination "Game drawn by agreement"]

1. Nf3 {[%clk 0:03:01.9]} 1... Nf6 {[%clk 0:02:58.9]} 2. c4 {[%clk 0:03:02.4]}
2... e6 {[%clk 0:02:58.8]} 3. g3 {[%clk 0:03:03.2]} 3... b6 {[%clk 0:02:59.1]}
4. Bg2 {[%clk 0:03:04.1]} 4... Bb7 {[%clk 0:03:01]} 5. O-O {[%clk 0:03:05]} 5...
Be7 {[%clk 0:03:02.1]} 6. Nc3 {[%clk 0:03:05.4]} 6... c5 {[%clk 0:03:01.5]} 7.
Re1 {[%clk 0:03:05.6]} 7... Ne4 {[%clk 0:03:02]} 8. Nxe4 {[%clk 0:03:03.1]} 8...
Bxe4 {[%clk 0:03:03.9]} 9. d4 {[%clk 0:03:02.2]} 9... O-O {[%clk 0:02:59.4]} 10.
d5 {[%clk 0:03:03.4]} 10... exd5 {[%clk 0:02:57]} 11. cxd5 {[%clk 0:03:01.8]}
11... d6 {[%clk 0:02:57.8]} 12. Bf4 {[%clk 0:02:54.9]} 12... Re8 {[%clk
0:02:54.5]} 13. Qb3 {[%clk 0:02:33.7]} 13... Nd7 {[%clk 0:02:43.7]} 14. Nd4
{[%clk 0:02:25.6]} 14... cxd4 {[%clk 0:02:31.2]} 15. Bxe4 {[%clk 0:02:25.8]}
15... Nc5 {[%clk 0:02:32.6]} 16. Qc2 {[%clk 0:02:21.4]} 16... g6 {[%clk
0:02:29.3]} 17. Bf3 {[%clk 0:02:09.7]} 17... Rc8 {[%clk 0:02:18.9]} 18. Qd2
{[%clk 0:01:46.2]} 18... Bf6 {[%clk 0:02:18.8]} 19. h4 {[%clk 0:01:37.5]} 19...
Be5 {[%clk 0:02:09.4]} 20. Rac1 {[%clk 0:01:12.8]} 20... Qe7 {[%clk 0:02:02.7]}
21. b4 {[%clk 0:01:10]} 21... Na4 {[%clk 0:01:58.7]} 22. Rc6 {[%clk 0:01:08.4]}
22... Nc3 {[%clk 0:01:52.8]} 23. a3 {[%clk 0:00:52.4]} 23... Bxf4 {[%clk
0:01:43.5]} 24. Qxf4 {[%clk 0:00:53.1]} 24... d3 {[%clk 0:01:44.7]} 25. Qd2
{[%clk 0:00:36.6]} 25... Nxe2+ {[%clk 0:01:38.8]} 26. Bxe2 {[%clk 0:00:21.6]}
26... dxe2 {[%clk 0:01:36.9]} 27. Rxe2 {[%clk 0:00:16.1]} 27... Qxe2 {[%clk
0:01:25.5]} 28. Qxe2 {[%clk 0:00:18]} 28... Rxe2 {[%clk 0:01:25]} 29. Rxc8+
{[%clk 0:00:19.9]} 29... Kg7 {[%clk 0:01:26.7]} 30. Rd8 {[%clk 0:00:19.4]} 30...
Ra2 {[%clk 0:01:26.4]} 31. Rxd6 {[%clk 0:00:19.8]} 31... Rxa3 {[%clk 0:01:27.7]}
32. Rd7 {[%clk 0:00:20.9]} 32... Kf6 {[%clk 0:01:22.1]} 33. g4 {[%clk
0:00:21.8]} 33... h6 {[%clk 0:01:20.6]} 34. Kg2 {[%clk 0:00:20.9]} 34... g5
{[%clk 0:01:08.1]} 35. Rd6+ {[%clk 0:00:18.7]} 35... Kg7 {[%clk 0:01:07.3]} 36.
hxg5 {[%clk 0:00:13.8]} 36... hxg5 {[%clk 0:01:09.2]} 37. f3 {[%clk 0:00:11.7]}
37... Ra4 {[%clk 0:01:03.6]} 38. Rd7 {[%clk 0:00:12.7]} 38... Kf6 {[%clk
0:01:04.5]} 39. b5 {[%clk 0:00:10.3]} 39... Ra5 {[%clk 0:01:03.6]} 40. d6 {[%clk
0:00:08.6]} 40... Rxb5 {[%clk 0:00:33.2]} 41. Rxa7 {[%clk 0:00:09.3]} 41... Rd5
{[%clk 0:00:33.5]} 42. d7 {[%clk 0:00:10.7]} 42... b5 {[%clk 0:00:32.4]} 43. Rb7
{[%clk 0:00:11.1]} 43... Kg6 {[%clk 0:00:19.3]} 44. Kf2 {[%clk 0:00:08.9]} 44...
b4 {[%clk 0:00:19.6]} 45. Ke3 {[%clk 0:00:09.6]} 45... b3 {[%clk 0:00:19.5]} 46.
Ke4 {[%clk 0:00:10.7]} 46... Rd1 {[%clk 0:00:19.8]} 47. Ke5 {[%clk 0:00:07]}
47... b2 {[%clk 0:00:19.2]} 48. Rb6+ {[%clk 0:00:07.8]} 48... Kg7 {[%clk
0:00:16.5]} 49. Rxb2 {[%clk 0:00:08.6]} 49... Rxd7 {[%clk 0:00:18]} 50. Rb5
{[%clk 0:00:07.2]} 50... Kg6 {[%clk 0:00:17.3]} 1/2-1/2

[Event "*** Titled Tuesday Blitz"]
[Site "Chess.com"]
[Date "2018.07.03"]
[Round "4"]
[White "ChessMavenYeti"]
[Black "Caterpiller35"]
[Result "0-1"]
[WhiteElo "2197"]
[BlackElo "2295"]
[TimeControl "180+2"]
[EndTime "13:51:57 PDT"]
[Termination "Caterpiller35 won by resignation"]

1. d4 {[%clk 0:03:01.9]} 1... Nf6 {[%clk 0:03:00.4]} 2. c4 {[%clk 0:03:02.9]}
2... e6 {[%clk 0:03:01.6]} 3. Nc3 {[%clk 0:03:03.9]} 3... Bb4 {[%clk 0:03:02.9]}
4. Qc2 {[%clk 0:03:05.3]} 4... O-O {[%clk 0:03:03.1]} 5. Nf3 {[%clk 0:03:04.1]}
5... d5 {[%clk 0:03:03.1]} 6. cxd5 {[%clk 0:02:59.8]} 6... exd5 {[%clk
0:03:03.4]} 7. Bg5 {[%clk 0:03:00]} 7... h6 {[%clk 0:03:03.1]} 8. Bxf6 {[%clk
0:02:53.4]} 8... Qxf6 {[%clk 0:03:05]} 9. e3 {[%clk 0:02:54.5]} 9... Bf5 {[%clk
0:03:04.3]} 10. Qb3 {[%clk 0:02:52.9]} 10... Bxc3+ {[%clk 0:02:48.1]} 11. bxc3
{[%clk 0:02:50.7]} 11... Qb6 {[%clk 0:02:35.4]} 12. Qxd5 {[%clk 0:02:46]} 12...
Qb2 {[%clk 0:02:31.2]} 13. Rd1 {[%clk 0:02:31.4]} 13... Qxc3+ {[%clk 0:02:29.4]}
14. Nd2 {[%clk 0:02:31.7]} 14... Bg4 {[%clk 0:02:08.5]} 15. Rb1 {[%clk
0:02:14.9]} 15... Nc6 {[%clk 0:02:03.9]} 16. Qc4 {[%clk 0:01:58]} 16... Qa5
{[%clk 0:01:59.2]} 17. Rb5 {[%clk 0:01:46.9]} 17... Qa3 {[%clk 0:01:59.8]} 18.
Bd3 {[%clk 0:01:40.9]} 18... Be6 {[%clk 0:01:41.6]} 19. Qc2 {[%clk 0:01:33.1]}
19... Nb4 {[%clk 0:01:36.3]} 20. Bh7+ {[%clk 0:01:28.3]} 20... Kh8 {[%clk
0:01:35.4]} 21. Qb1 {[%clk 0:01:28.9]} 21... Nxa2 {[%clk 0:01:32.7]} 22. Rxb7
{[%clk 0:00:52.7]} 22... Nc3 {[%clk 0:01:20.8]} 23. Qc2 {[%clk 0:00:42.4]} 23...
Qa1+ {[%clk 0:00:48.9]} 24. Nb1 {[%clk 0:00:41.9]} 24... Rab8 {[%clk 0:00:46.7]}
25. Rxb8 {[%clk 0:00:32.7]} 25... Rxb8 {[%clk 0:00:46.8]} 26. O-O {[%clk
0:00:34.3]} 26... Nxb1 {[%clk 0:00:24.1]} 27. Rxb1 {[%clk 0:00:26.5]} 27...
Rxb1+ {[%clk 0:00:24.1]} 28. Qxb1 {[%clk 0:00:27.5]} 28... Qc3 {[%clk
0:00:24.1]} 29. Be4 {[%clk 0:00:27.1]} 29... g6 {[%clk 0:00:21.7]} 30. Qb8+
{[%clk 0:00:24.1]} 30... Kg7 {[%clk 0:00:22.6]} 31. h3 {[%clk 0:00:25.5]} 31...
a5 {[%clk 0:00:23.2]} 32. Qb5 {[%clk 0:00:23.1]} 32... Qe1+ {[%clk 0:00:23.1]}
33. Qf1 {[%clk 0:00:19.7]} 33... Qc3 {[%clk 0:00:22.6]} 34. Qb5 {[%clk
0:00:19.7]} 34... Qb4 {[%clk 0:00:19.7]} 35. Qe5+ {[%clk 0:00:20]} 35... Kg8
{[%clk 0:00:19.5]} 36. Qxc7 {[%clk 0:00:20.9]} 36... Qe1+ {[%clk 0:00:20.2]} 37.
Kh2 {[%clk 0:00:21.4]} 37... Qxf2 {[%clk 0:00:21.4]} 38. Qd8+ {[%clk 0:00:21]}
38... Kg7 {[%clk 0:00:21.8]} 39. Qxa5 {[%clk 0:00:21.9]} 39... Qxe3 {[%clk
0:00:22.6]} 40. Qe5+ {[%clk 0:00:22.9]} 40... Kg8 {[%clk 0:00:22.4]} 41. Bf3
{[%clk 0:00:20.8]} 41... Qxe5+ {[%clk 0:00:22.1]} 42. dxe5 {[%clk 0:00:22]}
42... Kf8 {[%clk 0:00:22.9]} 43. Kg3 {[%clk 0:00:23.3]} 43... Ke7 {[%clk
0:00:24.4]} 44. Kf4 {[%clk 0:00:24.5]} 44... Kd7 {[%clk 0:00:25.6]} 45. Bg4
{[%clk 0:00:25.2]} 45... Bxg4 {[%clk 0:00:25.3]} 46. Kxg4 {[%clk 0:00:26.5]}
46... Ke6 {[%clk 0:00:26.5]} 47. Kf4 {[%clk 0:00:27.9]} 47... Kd5 {[%clk
0:00:27.6]} 48. h4 {[%clk 0:00:27.1]} 48... h5 {[%clk 0:00:27.6]} 49. g3 {[%clk
0:00:25.7]} 49... Kd4 {[%clk 0:00:27.8]} 50. e6 {[%clk 0:00:26.8]} 50... fxe6
{[%clk 0:00:28.4]} 51. Kg5 {[%clk 0:00:28.7]} 51... e5 {[%clk 0:00:29.8]} 52.
Kxg6 {[%clk 0:00:30]} 52... e4 {[%clk 0:00:31.2]} 53. g4 {[%clk 0:00:30.4]}
53... e3 {[%clk 0:00:33.1]} 54. gxh5 {[%clk 0:00:31.2]} 54... e2 {[%clk
0:00:34.4]} 55. h6 {[%clk 0:00:32.7]} 55... e1=Q {[%clk 0:00:35.2]} 56. h7
{[%clk 0:00:32.6]} 56... Qe5 {[%clk 0:00:35.4]} 57. h5 {[%clk 0:00:31.2]} 57...
Qh8 {[%clk 0:00:36.4]} 58. h6 {[%clk 0:00:32.7]} 58... Ke5 {[%clk 0:00:37.7]}
0-1

[Event "*** Titled Tuesday Blitz"]
[Site "Chess.com"]
[Date "2018.07.03"]
[Round "4"]
[White "ftorodent"]
[Black "Grebeniuk-S"]
[Result "1-0"]
[WhiteElo "2521"]
[BlackElo "2458"]
[TimeControl "180+2"]
[EndTime "13:51:58 PDT"]
[Termination "ftorodent won by resignation"]

1. d4 {[%clk 0:03:00.2]} 1... f5 {[%clk 0:03:00.7]} 2. g3 {[%clk 0:03:00.4]}
2... Nf6 {[%clk 0:03:01.8]} 3. Bg2 {[%clk 0:03:01.6]} 3... d6 {[%clk 0:03:03.2]}
4. c3 {[%clk 0:03:00.4]} 4... g6 {[%clk 0:03:02]} 5. Qb3 {[%clk 0:03:01]} 5...
c6 {[%clk 0:03:01.3]} 6. Nf3 {[%clk 0:02:52.8]} 6... Qb6 {[%clk 0:02:59.2]} 7.
O-O {[%clk 0:02:43.4]} 7... Bg7 {[%clk 0:02:59]} 8. Nbd2 {[%clk 0:02:44.2]} 8...
Qxb3 {[%clk 0:02:58]} 9. axb3 {[%clk 0:02:45.2]} 9... Be6 {[%clk 0:02:50]} 10.
b4 {[%clk 0:02:37.2]} 10... Nbd7 {[%clk 0:02:44.6]} 11. Re1 {[%clk 0:02:35.4]}
11... Bd5 {[%clk 0:02:39]} 12. Ng5 {[%clk 0:02:21.2]} 12... Bxg2 {[%clk
0:02:28.8]} 13. Kxg2 {[%clk 0:02:21.8]} 13... Nf8 {[%clk 0:02:30.4]} 14. e4
{[%clk 0:02:20.3]} 14... h6 {[%clk 0:02:27.5]} 15. Ngf3 {[%clk 0:02:20.7]} 15...
fxe4 {[%clk 0:02:27.2]} 16. Nxe4 {[%clk 0:02:21.7]} 16... Kd7 {[%clk 0:02:14.9]}
17. h4 {[%clk 0:02:16.2]} 17... Ne6 {[%clk 0:02:06.1]} 18. Ra5 {[%clk
0:01:55.7]} 18... Nc7 {[%clk 0:01:57]} 19. Nxf6+ {[%clk 0:01:41.7]} 19... exf6
{[%clk 0:01:45.6]} 20. h5 {[%clk 0:01:42.7]} 20... g5 {[%clk 0:01:42.2]} 21. g4
{[%clk 0:01:38.1]} 21... d5 {[%clk 0:01:25.8]} 22. Ra1 {[%clk 0:01:21.5]} 22...
a6 {[%clk 0:01:15]} 23. Nh2 {[%clk 0:01:13.9]} 23... f5 {[%clk 0:01:13.4]} 24.
gxf5 {[%clk 0:01:13.6]} 24... Rhf8 {[%clk 0:01:14.9]} 25. Bd2 {[%clk 0:01:12.4]}
25... Rxf5 {[%clk 0:01:15.1]} 26. Re2 {[%clk 0:01:13.2]} 26... Re8 {[%clk
0:01:12.8]} 27. Rae1 {[%clk 0:01:13.9]} 27... Rxe2 {[%clk 0:01:13.1]} 28. Rxe2
{[%clk 0:01:14.2]} 28... Nb5 {[%clk 0:01:03]} 29. Ng4 {[%clk 0:01:09.7]} 29...
Nd6 {[%clk 0:01:03.4]} 30. f3 {[%clk 0:01:09.8]} 30... Rf7 {[%clk 0:00:51.8]}
31. Be1 {[%clk 0:01:09.7]} 31... Nf5 {[%clk 0:00:47.2]} 32. Bg3 {[%clk
0:01:09.3]} 32... Re7 {[%clk 0:00:45.1]} 33. Be5 {[%clk 0:01:01]} 33... Bxe5
{[%clk 0:00:26.5]} 34. Nxe5+ {[%clk 0:01:01.4]} 34... Kc7 {[%clk 0:00:27.3]} 35.
Kf2 {[%clk 0:00:59.6]} 35... Kb6 {[%clk 0:00:25.4]} 36. f4 {[%clk 0:00:43.6]}
36... gxf4 {[%clk 0:00:25.3]} 37. Kf3 {[%clk 0:00:44.8]} 37... Kb5 {[%clk
0:00:21]} 38. Kxf4 {[%clk 0:00:27.3]} 38... Nd6 {[%clk 0:00:22.4]} 39. b3 {[%clk
0:00:24.4]} 39... Rg7 {[%clk 0:00:22.4]} 40. Ng6 {[%clk 0:00:22.7]} 40... Rf7+
{[%clk 0:00:23.2]} 41. Ke5 {[%clk 0:00:23.9]} 41... Ne4 {[%clk 0:00:24.3]} 42.
Re3 {[%clk 0:00:23.7]} 42... Rf1 {[%clk 0:00:21]} 43. Ne7 {[%clk 0:00:22.7]}
43... Rh1 {[%clk 0:00:21.2]} 44. Nf5 {[%clk 0:00:20.1]} 44... Rxh5 {[%clk
0:00:22.2]} 45. Ke6 {[%clk 0:00:20.7]} 45... Rh1 {[%clk 0:00:19.3]} 46. Kd7
{[%clk 0:00:17.3]} 46... h5 {[%clk 0:00:16.7]} 47. Kc7 {[%clk 0:00:16.6]} 47...
b6 {[%clk 0:00:16.9]} 48. Rxe4 {[%clk 0:00:17.4]} 48... a5 {[%clk 0:00:16.7]}
49. Nd6+ {[%clk 0:00:12.2]} 49... Ka6 {[%clk 0:00:17.6]} 50. Re8 {[%clk
0:00:12.1]} 50... Ka7 {[%clk 0:00:12.7]} 51. Kxc6 {[%clk 0:00:13.3]} 51... axb4
{[%clk 0:00:12.5]} 52. Nb5+ {[%clk 0:00:14.2]} 1-0